[Event "FRA-chT Top 12 2019"]
[Site "Brest"]
[Date "2019.05.18"]
[Round "1.1"]
[White "Donchenko, Alexander"]
[Black "Nihal Sarin"]
[Result "1-0"]
[ECO "E47"]
[WhiteElo "2595"]
[BlackElo "2598"]
[Annotator "RC"]
[PlyCount "77"]
[EventDate "2019.05.18"]
[EventType "team-tourn"]
[EventCountry "FRA"]
[SourceTitle "playchess.com"]
[Source "ChessBase"]
[SourceQuality "1"]
[TimeControl "40/5400+30:1800+30"]

1. d4 {[%emt 0:00:00]} Nf6 {[%emt 0:00:00]} 2. c4 {[%emt 0:00:00]} e6 {[%emt 0:00:11]} 3. Nc3 {[%emt 0:00:17]} Bb4 {[%emt 0:01:07]} 4. e3 {[%emt 0:00:23]} O-O {[%emt 0:01:39]} 5. Bd3 {[%emt 0:00:52]} c5 {[%emt 0:01:05]} 6. Nf3 {[%emt 0:03:13]} d5 {[%emt 0:02:03]} 7. O-O {[%emt 0:04:22]} cxd4 {[%emt 0:08:00]} 8. exd4 {[%emt 0:00:19]} dxc4 {[%emt 0:00:06]} 9. Bxc4 {[%emt 0:00:08]} b6 {[%emt 0:00:06]} 10. Bg5 {[%emt 0:00:33]} Bb7 {[%emt 0:01:18]} 11. Ne5 {[%emt 0:02:05]} Nbd7 {[%emt 0:02:27]} 12. Qe2 {[%emt 0:04:12]} Bxc3 {[%emt 0:07:11]} 13. bxc3 {[%emt 0:02:07]} Rc8 {[%emt 0:00:09]} 14. Rac1 {[%emt 0:02:38]} Nxe5 {[%emt 0:11:00]} 15. dxe5 {[%emt 0:00:31]} Rc5 {[%emt 0:00:07]} 16. Bd3 {[%emt 0:04:23]} Qc7 {[%emt 0:11:49]} 17. Bxf6 {[%emt 0:04:54]} gxf6 {[%emt 0:00:45]} 18. Qh5 {[%emt 0:00:14]} f5 {[%emt 0:00:53]} 19. Qg5+ {[%emt 0:00:43]} Kh8 {[%emt 0:00:18]} 20. Qf6+ {[%emt 0:00:08]} Kg8 {[%emt 0:00:01]} 21. Rfe1 {[%emt 0:00:54]} Qd8 {[%emt 0:12:35]} 22. Qh6 {[%emt 0:00:51]} Kh8 {[%emt 0:04:44]} 23. Rcd1 {[%emt 0:09:39]} Rg8 {[%emt 0:00:38]} 24. Bxf5 {[%emt 0:09:19]} Rxg2+ {[%emt 0:16:23]} 25. Kf1 {[%emt 0:00:24]} Rg1+ {[%emt 0:12:58]} 26. Kxg1 {[%emt 0:00:17]} Qg8+ {[%emt 0:00:01]} 27. Bg6 {[%emt 0:00:12]} Bd5 {[%emt 0:00:41]} 28. Qxh7+ {[%emt 0:01:59]} Qxh7 {[%emt 0:00:02]} 29. Bxh7 {[%emt 0:00:11]} Kxh7 {[%emt 0:00:01]} 30. Re3 {[%emt 0:00:57]} Kg6 {[%emt 0:00:59]} 31. Rd4 {[%emt 0:03:17]} Rb5 {[%emt 0:00:53]} 32. Rb4 {[%emt 0:00:39]} Ra5 {[%emt 0:00:08]} 33. Rf4 {[%emt 0:03:21]} Kg7 {[%emt 0:02:49]} 34. c4 {[%emt 0:01:15]} Ra4 {[%emt 0:00:19]} 35. Rd3 {[%emt 0:02:18]} Kf8 {[%emt 0:02:08]} 36. Rdd4 {[%emt 0:01:31]} Bc6 {[%emt 0:00:01]} 37. Rd6 {[%emt 0:00:22]} Be8 {[%emt 0:00:48]} 38. Rxe6 {[%emt 0:02:30]} Rxa2 {[%emt 0:00:36]} 39. h4 {[%emt 0:00:17]} 1-0

[Event "FRA-chT Top 12 2019"]
[Site "Brest"]
[Date "2019.05.18"]
[Round "1.3"]
[White "Bailet, Pierre"]
[Black "Istratescu, Andrei"]
[Result "1/2-1/2"]
[ECO "C42"]
[WhiteElo "2466"]
[BlackElo "2555"]
[Annotator "RC"]
[PlyCount "24"]
[EventDate "2019.05.18"]
[EventType "team-tourn"]
[EventCountry "FRA"]
[SourceTitle "playchess.com"]
[Source "ChessBase"]
[SourceQuality "1"]
[TimeControl "40/5400+30:1800+30"]

1. e4 {[%emt 0:00:00]} e5 {[%emt 0:00:35]} 2. Nf3 {[%emt 0:00:06]} Nf6 {[%emt 0:00:42]} 3. Nxe5 {[%emt 0:01:37]} d6 {[%emt 0:00:32]} 4. Nf3 {[%emt 0:00:11]} Nxe4 {[%emt 0:00:03]} 5. d4 {[%emt 0:02:39]} Be7 {[%emt 0:03:01]} 6. Bd3 {[%emt 0:01:34]} d5 {[%emt 0:02:10]} 7. O-O {[%emt 0:02:09]} Nc6 {[%emt 0:07:03]} 8. Nbd2 {[%emt 0:06:40]} Nxd2 {[%emt 0:05:45]} 9. Bxd2 {[%emt 0:00:23]} Bg4 {[%emt 0:01:41]} 10. c3 {[%emt 0:03:28]} O-O {[%emt 0:05:58]} 11. h3 {[%emt 0:07:34]} Bh5 {[%emt 0:02:03]} 12. Re1 {[%emt 0:06:50]} Bd6 {[%emt 0:11:29]} 1/2-1/2

[Event "FRA-chT Top 12 2019"]
[Site "Brest"]
[Date "2019.05.18"]
[Round "1.3"]
[White "Miezis, Normunds"]
[Black "Efimov, Igor"]
[Result "1-0"]
[ECO "A11"]
[WhiteElo "2456"]
[BlackElo "2439"]
[Annotator "ChessBase"]
[PlyCount "87"]
[EventDate "2019.05.18"]
[EventType "team-tourn"]
[EventCountry "FRA"]
[SourceTitle "playchess.com"]
[Source "ChessBase"]
[SourceQuality "1"]
[TimeControl "40/5400+30:1800+30"]

1. c4 {[%emt 0:00:00]} c6 {[%emt 0:00:19]} 2. e4 {[%emt 0:00:16]} e5 {[%emt 0:00:18]} 3. Nf3 {[%emt 0:00:43]} Nf6 {[%emt 0:06:07]} 4. Nc3 {[%emt 0:01:57]} d6 {[%emt 0:02:06]} 5. d4 {[%emt 0:01:46]} Nbd7 {[%emt 0:04:50]} 6. Be2 {[%emt 0:01:52]} Be7 {[%emt 0:03:08]} 7. O-O {[%emt 0:00:59]} O-O {[%emt 0:00:04]} 8. Rb1 {[%emt 0:04:14]} Re8 {[%emt 0:01:20]} 9. Re1 {[%emt 0:01:05]} Bf8 {[%emt 0:13:38]} 10. Bf1 {[%emt 0:02:03]} h6 {[%emt 0:02:03]} 11. b4 {[%emt 0:15:42]} Nh7 {[%emt 0:08:15]} 12. a3 {[%emt 0:05:03]} Ng5 {[%emt 0:06:55]} 13. Nxg5 {[%emt 0:03:13]} hxg5 {[%emt 0:00:10]} 14. d5 {[%emt 0:00:59]} c5 {[%emt 0:00:59]} 15. Re3 {[%emt 0:01:49]} b6 {[%emt 0:01:07]} 16. Rg3 {[%emt 0:00:37]} Be7 {[%emt 0:14:42]} 17. Qh5 {[%emt 0:04:44]} g6 {[%emt 0:08:13]} 18. Bxg5 {[%emt 0:09:48]} Bxg5 {[%emt 0:04:14]} 19. Qxg5 {[%emt 0:01:39]} Qxg5 {[%emt 0:07:43]} 20. Rxg5 {[%emt 0:00:14]} Nf6 {[%emt 0:00:06]} 21. Rg3 {[%emt 0:04:21]} Bd7 {[%emt 0:00:18]} 22. Re3 {[%emt 0:00:22]} Ng4 {[%emt 0:00:58]} 23. Re2 {[%emt 0:02:17]} f5 {[%emt 0:00:24]} 24. bxc5 {[%emt 0:01:29]} bxc5 {[%emt 0:00:16]} 25. Reb2 {[%emt 0:03:03]} Nf6 {[%emt 0:00:09]} 26. f3 {[%emt 0:01:42]} Kf8 {[%emt 0:00:25]} 27. Bd3 {[%emt 0:01:02]} Re7 {[%emt 0:02:40]} 28. a4 {[%emt 0:02:11]} a5 {[%emt 0:01:16]} 29. Rb6 {[%emt 0:01:17]} Ne8 {[%emt 0:00:10]} 30. Rb8 {[%emt 0:01:27]} Ra7 {[%emt 0:00:57]} 31. R1b6 {[%emt 0:05:07]} Kf7 {[%emt 0:00:20]} 32. Rd8 {[%emt 0:02:18]} f4 {[%emt 0:00:39]} 33. h4 {[%emt 0:03:47]} Kf6 {[%emt 0:02:14]} 34. Nb5 {[%emt 0:02:23]} Bxb5 {[%emt 0:00:20]} 35. cxb5 {[%emt 0:00:12]} Kf7 {[%emt 0:00:51]} 36. Rbb8 {[%emt 0:01:11]} Nf6 {[%emt 0:00:36]} 37. b6 {[%emt 0:05:18]} Rad7 {[%emt 0:01:01]} 38. Bb5 {[%emt 0:01:19]} Rxd8 {[%emt 0:04:36]} 39. Rxd8 {[%emt 0:00:13]} Rb7 {[%emt 0:00:15]} 40. Rxd6 {[%emt 0:00:25]} Rb8 {[%emt 0:00:16]} 41. Ba6 {[%emt 0:31:46]} Ke7 {[%emt 0:32:56]} 42. Re6+ {[%emt 0:01:15]} Kf7 {[%emt 0:01:17]} 43. Rc6 {[%emt 0:01:25]} Ke7 {[%emt 0:00:00]} 44. b7 {[%emt 0:00:00]} 1-0

[Event "FRA-chT Top 12 2019"]
[Site "Brest"]
[Date "2019.05.18"]
[Round "1.4"]
[White "Hamdouchi, Hicham"]
[Black "Genzling, Alain"]
[Result "1-0"]
[ECO "B34"]
[WhiteElo "2584"]
[BlackElo "2376"]
[Annotator "ChessBase"]
[PlyCount "81"]
[EventDate "2019.05.18"]
[EventType "team-tourn"]
[EventCountry "FRA"]
[SourceTitle "playchess.com"]
[Source "ChessBase"]
[SourceQuality "1"]
[TimeControl "40/5400+30:1800+30"]

1. e4 {[%emt 0:00:00]} c5 {[%emt 0:00:00]} 2. Nf3 {[%emt 0:00:00]} Nc6 {[%emt 0:00:01]} 3. d4 {[%emt 0:00:18]} cxd4 {[%emt 0:00:22]} 4. Nxd4 {[%emt 0:00:06]} Nf6 {[%emt 0:03:05]} 5. Nc3 {[%emt 0:00:21]} e5 {[%emt 0:00:11]} 6. Ndb5 {[%emt 0:00:17]} d6 {[%emt 0:00:12]} 7. Na3 {[%emt 0:00:47]} Be6 {[%emt 0:02:57]} 8. Bg5 {[%emt 0:10:55]} Rc8 {[%emt 0:05:29]} 9. Nc4 {[%emt 0:04:15]} Nd4 {[%emt 0:04:48]} 10. Ne3 {[%emt 0:02:24]} Qa5 {[%emt 0:27:44]} 11. Bd3 {[%emt 0:06:59]} Be7 {[%emt 0:18:02]} 12. O-O {[%emt 0:04:38]} O-O {[%emt 0:00:46]} 13. Bxf6 {[%emt 0:02:51]} Bxf6 {[%emt 0:00:21]} 14. Ncd5 {[%emt 0:00:27]} Bg5 {[%emt 0:02:15]} 15. c3 {[%emt 0:02:36]} Nc6 {[%emt 0:01:39]} 16. Be2 {[%emt 0:04:49]} Bxe3 {[%emt 0:09:28]} 17. Nxe3 {[%emt 0:01:00]} Rfd8 {[%emt 0:02:00]} 18. Bg4 {[%emt 0:02:48]} Qc7 {[%emt 0:00:14]} 19. Bxe6 {[%emt 0:20:55]} fxe6 {[%emt 0:00:40]} 20. Qg4 {[%emt 0:00:05]} Qf7 {[%emt 0:01:25]} 21. Rad1 {[%emt 0:00:20]} Ne7 {[%emt 0:02:17]} 22. Rd2 {[%emt 0:01:44]} d5 {[%emt 0:02:50]} 23. Rfd1 {[%emt 0:01:08]} Rf8 {[%emt 0:03:51]} 24. Qg3 {[%emt 0:01:35]} Qf4 {[%emt 0:07:26]} 25. exd5 {[%emt 0:00:46]} Qxg3 {[%emt 0:00:51]} 26. hxg3 {[%emt 0:00:09]} exd5 {[%emt 0:00:03]} 27. Nxd5 {[%emt 0:00:15]} Nc6 {[%emt 0:00:15]} 28. Ne3 {[%emt 0:08:02]} Rc7 {[%emt 0:00:22]} 29. f3 {[%emt 0:01:47]} h6 {[%emt 0:01:54]} 30. g4 {[%emt 0:07:29]} Kh7 {[%emt 0:01:13]} 31. Nf5 {[%emt 0:04:45]} Rff7 {[%emt 0:00:08]} 32. Nd6 {[%emt 0:00:25]} Rf8 {[%emt 0:01:51]} 33. Ne4 {[%emt 0:00:22]} Rff7 {[%emt 0:00:01]} 34. Rd6 {[%emt 0:01:06]} Ne7 {[%emt 0:01:32]} 35. Kf2 {[%emt 0:00:54]} Ng6 {[%emt 0:00:21]} 36. g3 {[%emt 0:03:53]} Rc6 {[%emt 0:00:40]} 37. Rxc6 {[%emt 0:01:03]} bxc6 {[%emt 0:00:01]} 38. Rd6 {[%emt 0:00:14]} Rb7 {[%emt 0:00:56]} 39. b3 {[%emt 0:00:39]} Rc7 {[%emt 0:00:35]} 40. Nc5 {[%emt 0:00:28]} Nf8 {[%emt 0:00:37]} 41. Ke3 {[%emt 0:30:31]} 1-0

[Event "FRA-chT Top 12 2019"]
[Site "Brest"]
[Date "2019.05.18"]
[Round "1.4"]
[White "Villegas, Pierre"]
[Black "Lefebvre, Herve"]
[Result "1-0"]
[ECO "A04"]
[WhiteElo "2354"]
[BlackElo "2291"]
[Annotator "ChessBase"]
[PlyCount "103"]
[EventDate "2019.05.18"]
[EventType "team-tourn"]
[EventCountry "FRA"]
[SourceTitle "playchess.com"]
[Source "ChessBase"]
[SourceQuality "1"]
[TimeControl "40/5400+30:1800+30"]

1. Nf3 {[%emt 0:00:00]} c5 {[%emt 0:00:00]} 2. c4 {[%emt 0:00:04]} Nc6 {[%emt 0:00:37]} 3. b3 {[%emt 0:00:34]} e5 {[%emt 0:01:24]} 4. Bb2 {[%emt 0:00:20]} d6 {[%emt 0:00:10]} 5. Nc3 {[%emt 0:00:12]} g6 {[%emt 0:00:34]} 6. g3 {[%emt 0:00:58]} Bg7 {[%emt 0:00:23]} 7. Bg2 {[%emt 0:00:19]} Nge7 {[%emt 0:00:15]} 8. O-O {[%emt 0:00:16]} Bf5 {[%emt 0:07:55]} 9. h3 {[%emt 0:07:45]} Nd4 {[%emt 0:19:07]} 10. Nh4 {[%emt 0:09:55]} Bc2 {[%emt 0:23:50]} 11. Qc1 {[%emt 0:08:02]} g5 {[%emt 0:00:42]} 12. Nf3 {[%emt 0:00:14]} Nxf3+ {[%emt 0:02:17]} 13. Bxf3 {[%emt 0:00:14]} Bf5 {[%emt 0:00:22]} 14. Kh2 {[%emt 0:17:22]} Qd7 {[%emt 0:01:29]} 15. d3 {[%emt 0:02:50]} O-O-O {[%emt 0:21:50]} 16. Bg2 {[%emt 0:16:07]} h5 {[%emt 0:04:37]} 17. a3 {[%emt 0:05:17]} Bh6 {[%emt 0:03:37]} 18. Qd1 {[%emt 0:02:07]} Rdg8 {[%emt 0:02:35]} 19. b4 {[%emt 0:01:02]} f6 {[%emt 0:05:58]} 20. Rb1 {[%emt 0:12:09]} Bxh3 {[%emt 0:00:43]} 21. Bxh3 {[%emt 0:00:10]} g4 {[%emt 0:00:03]} 22. bxc5 {[%emt 0:01:55]} gxh3 {[%emt 0:00:14]} 23. Ne4 {[%emt 0:01:50]} dxc5 {[%emt 0:02:06]} 24. Nxf6 {[%emt 0:00:53]} Qc6 {[%emt 0:00:03]} 25. Ne4 {[%emt 0:00:10]} Ng6 {[%emt 0:00:22]} 26. e3 {[%emt 0:05:28]} h4 {[%emt 0:00:10]} 27. g4 {[%emt 0:00:25]} Rd8 {[%emt 0:01:13]} 28. Qe2 {[%emt 0:01:21]} b6 {[%emt 0:00:38]} 29. Kxh3 {[%emt 0:02:05]} Bf4 {[%emt 0:00:13]} 30. Bc1 {[%emt 0:01:07]} Bh6 {[%emt 0:00:01]} 31. Nc3 {[%emt 0:01:16]} Qe6 {[%emt 0:00:39]} 32. a4 {[%emt 0:01:29]} Rhg8 {[%emt 0:00:09]} 33. a5 {[%emt 0:00:20]} Rxd3 {[%emt 0:00:04]} 34. Nd5 {[%emt 0:00:48]} Qxd5 {[%emt 0:00:08]} 35. f3 {[%emt 0:00:55]} Qd6 {[%emt 0:01:04]} 36. axb6 {[%emt 0:00:13]} axb6 {[%emt 0:01:23]} 37. Rxb6 {[%emt 0:00:21]} Qxb6 {[%emt 0:00:31]} 38. Qxd3 {[%emt 0:00:01]} Qc6 {[%emt 0:00:43]} 39. Qf5+ {[%emt 0:00:50]} Kc7 {[%emt 0:00:39]} 40. Bb2 {[%emt 0:00:29]} Rf8 {[%emt 0:00:28]} 41. Bxe5+ {[%emt 0:30:13]} Nxe5 {[%emt 0:30:04]} 42. Qxe5+ {[%emt 0:00:02]} Qd6 {[%emt 0:00:32]} 43. Qxd6+ {[%emt 0:00:07]} Kxd6 {[%emt 0:00:01]} 44. f4 {[%emt 0:01:38]} Re8 {[%emt 0:00:41]} 45. Rd1+ {[%emt 0:00:00]} Ke6 {[%emt 0:00:00]} 46. Rd5 {[%emt 0:00:00]} Bf8 {[%emt 0:00:00]} 47. Re5+ {[%emt 0:00:00]} Kf7 {[%emt 0:00:00]} 48. Rxe8 {[%emt 0:00:00]} Kxe8 {[%emt 0:00:00]} 49. Kxh4 {[%emt 0:00:00]} Kf7 {[%emt 0:00:00]} 50. e4 {[%emt 0:00:00]} Bg7 {[%emt 0:00:00]} 51. e5 {[%emt 0:00:00]} Ke6 {[%emt 0:00:09]} 52. Kg3 {[%emt 0:00:00] Kd5} 1-0

[Event "FRA-chT Top 12 2019"]
[Site "Brest"]
[Date "2019.05.18"]
[Round "1.5"]
[White "Marcelin, Cyril"]
[Black "Loiseau, Quentin"]
[Result "1-0"]
[ECO "D02"]
[WhiteElo "2451"]
[BlackElo "2471"]
[Annotator "ChessBase"]
[PlyCount "51"]
[EventDate "2019.05.18"]
[EventType "team-tourn"]
[EventCountry "FRA"]
[SourceTitle "playchess.com"]
[Source "ChessBase"]
[SourceQuality "1"]
[TimeControl "40/5400+30:1800+30"]

1. d4 {[%emt 0:00:00]} d5 {[%emt 0:00:00]} 2. Nf3 {[%emt 0:00:00]} Nf6 {[%emt 0:00:00]} 3. c3 {[%emt 0:00:00]} Bf5 {[%emt 0:07:32]} 4. Qb3 {[%emt 0:00:22]} Qc8 {[%emt 0:05:18]} 5. Bf4 {[%emt 0:01:22]} e6 {[%emt 0:02:19]} 6. e3 {[%emt 0:00:59]} Nh5 {[%emt 0:10:43]} 7. Be5 {[%emt 0:16:36]} f6 {[%emt 0:03:45]} 8. Bg3 {[%emt 0:00:36]} Nd7 {[%emt 0:08:30]} 9. c4 {[%emt 0:06:45]} c6 {[%emt 0:03:12]} 10. Nc3 {[%emt 0:09:25]} Nxg3 {[%emt 0:06:52]} 11. hxg3 {[%emt 0:00:05]} Bg6 {[%emt 0:03:13]} 12. Rc1 {[%emt 0:15:20]} Nb6 {[%emt 0:22:03]} 13. cxd5 {[%emt 0:06:50]} exd5 {[%emt 0:00:14]} 14. Nh4 {[%emt 0:00:50]} Bf5 {[%emt 0:04:58]} 15. a4 {[%emt 0:10:25]} g5 {[%emt 0:15:01]} 16. Nxf5 {[%emt 0:00:28]} Qxf5 {[%emt 0:00:02]} 17. a5 {[%emt 0:02:56]} Nd7 {[%emt 0:00:11]} 18. Qxb7 {[%emt 0:05:05]} Rb8 {[%emt 0:00:13]} 19. Qxc6 {[%emt 0:00:06]} Rxb2 {[%emt 0:00:46]} 20. Be2 {[%emt 0:00:32]} Bb4 {[%emt 0:02:12]} 21. Qc8+ {[%emt 0:07:58]} Kf7 {[%emt 0:00:06]} 22. Qxh8 {[%emt 0:01:06]} Bxc3+ {[%emt 0:00:42]} 23. Rxc3 {[%emt 0:03:23]} Rb1+ {[%emt 0:00:07]} 24. Bd1 {[%emt 0:00:17]} Rxd1+ {[%emt 0:00:25]} 25. Kxd1 {[%emt 0:00:09]} Qb1+ {[%emt 0:00:05]} 26. Rc1 {[%emt 0:01:07]} 1-0

[Event "FRA-chT Top 12 2019"]
[Site "Brest"]
[Date "2019.05.18"]
[Round "1.5"]
[White "Nezar, Mustapha"]
[Black "Riff, Jean-Noel"]
[Result "1/2-1/2"]
[ECO "E32"]
[WhiteElo "2339"]
[BlackElo "2494"]
[Annotator "ChessBase"]
[PlyCount "62"]
[EventDate "2019.05.18"]
[EventType "team-tourn"]
[EventCountry "FRA"]
[SourceTitle "playchess.com"]
[Source "ChessBase"]
[SourceQuality "1"]
[TimeControl "40/5400+30:1800+30"]

1. d4 {[%emt 0:00:00]} Nf6 {[%emt 0:00:00]} 2. c4 {[%emt 0:00:00]} e6 {[%emt 0:00:00]} 3. Nc3 {[%emt 0:00:06]} Bb4 {[%emt 0:00:00]} 4. Qc2 {[%emt 0:00:35]} O-O {[%emt 0:00:03]} 5. Nf3 {[%emt 0:02:51]} d6 {[%emt 0:03:13]} 6. Bd2 {[%emt 0:02:33]} Nbd7 {[%emt 0:02:28]} 7. a3 {[%emt 0:09:47]} Bxc3 {[%emt 0:00:36]} 8. Bxc3 {[%emt 0:00:07]} Qe7 {[%emt 0:00:13]} 9. e3 {[%emt 0:06:15]} e5 {[%emt 0:04:45]} 10. Be2 {[%emt 0:03:29]} Re8 {[%emt 0:01:07]} 11. O-O {[%emt 0:06:43]} e4 {[%emt 0:01:15]} 12. Nd2 {[%emt 0:01:49]} Nf8 {[%emt 0:00:41]} 13. Rae1 {[%emt 0:22:37]} c6 {[%emt 0:13:07]} 14. f3 {[%emt 0:05:19]} Bf5 {[%emt 0:02:03]} 15. fxe4 {[%emt 0:03:44]} Bg6 {[%emt 0:00:10]} 16. Bd3 {[%emt 0:02:19]} Nxe4 {[%emt 0:00:28]} 17. Nxe4 {[%emt 0:08:05]} Bxe4 {[%emt 0:00:16]} 18. Bb4 {[%emt 0:01:45]} a5 {[%emt 0:03:18]} 19. Bc3 {[%emt 0:03:11]} Ng6 {[%emt 0:02:15]} 20. Bxe4 {[%emt 0:03:31]} Qxe4 {[%emt 0:00:05]} 21. Qxe4 {[%emt 0:00:17]} Rxe4 {[%emt 0:00:01]} 22. a4 {[%emt 0:00:31]} b6 {[%emt 0:01:49]} 23. b3 {[%emt 0:01:34]} Rae8 {[%emt 0:00:07]} 24. Bd2 {[%emt 0:01:06]} Nf8 {[%emt 0:02:06]} 25. Kf2 {[%emt 0:03:39]} Ne6 {[%emt 0:00:21]} 26. Kg1 {[%emt 0:01:08]} g6 {[%emt 0:00:44]} 27. Rb1 {[%emt 0:00:17]} c5 {[%emt 0:00:55]} 28. d5 {[%emt 0:00:37]} Ng7 {[%emt 0:00:02]} 29. Rf3 {[%emt 0:01:02]} f5 {[%emt 0:01:24]} 30. Re1 {[%emt 0:03:57]} Nh5 {[%emt 0:02:37]} 31. Bc3 {[%emt 0:00:48]} Rf8 {[%emt 0:05:19]} 1/2-1/2

[Event "FRA-chT Top 12 2019"]
[Site "Brest"]
[Date "2019.05.18"]
[Round "1.6"]
[White "Barbot, Pierre"]
[Black "Colin, Vincent"]
[Result "1-0"]
[ECO "E70"]
[WhiteElo "2439"]
[BlackElo "2383"]
[Annotator "NA"]
[PlyCount "83"]
[EventDate "2019.05.18"]
[EventType "team-tourn"]
[EventCountry "FRA"]
[SourceTitle "playchess.com"]
[Source "ChessBase"]
[SourceQuality "1"]
[TimeControl "40/5400+30:1800+30"]

1. d4 {[%emt 0:00:00]} Nf6 {[%emt 0:02:23]} 2. c4 {[%emt 0:00:00]} g6 {[%emt 0:00:06]} 3. Nc3 {[%emt 0:00:00]} Bg7 {[%emt 0:00:05]} 4. e4 {[%emt 0:00:00]} d6 {[%emt 0:00:05]} 5. Bd3 {[%emt 0:00:00]} O-O {[%emt 0:00:30]} 6. Nge2 {[%emt 0:00:00]} c5 {[%emt 0:00:11]} 7. d5 {[%emt 0:00:00]} e6 {[%emt 0:00:08]} 8. Bg5 {[%emt 0:00:04]} h6 {[%emt 0:00:48]} 9. Bh4 {[%emt 0:00:04]} exd5 {[%emt 0:00:08]} 10. exd5 {[%emt 0:00:04]} Nbd7 {[%emt 0:00:11]} 11. f4 {[%emt 0:00:06]} g5 {[%emt 0:00:09]} 12. Bg3 {[%emt 0:00:06]} Ng4 {[%emt 0:00:13]} 13. Qd2 {[%emt 0:01:52]} Bd4 {[%emt 0:02:21]} 14. Nxd4 {[%emt 0:01:30]} cxd4 {[%emt 0:00:11]} 15. Ne2 {[%emt 0:00:02]} Ne3 {[%emt 0:01:24]} 16. Nxd4 {[%emt 0:01:52]} Re8 {[%emt 0:03:21]} 17. Kf2 {[%emt 0:00:18]} Qf6 {[%emt 0:15:42]} 18. Rhe1 $11 {[%emt 0:22:53]} gxf4 {[%emt 0:08:54]} 19. Kg1 {[%emt 0:00:28]} Nc5 {[%emt 0:10:52]} 20. Bf2 {[%emt 0:21:57]} Ne4 {[%emt 0:03:32]} 21. Bxe4 {[%emt 0:01:15]} Rxe4 {[%emt 0:00:05]} 22. Nf3 {[%emt 0:02:37]} Bg4 {[%emt 0:04:34]} 23. Bxe3 {[%emt 0:09:41]} Bxf3 {[%emt 0:01:43]} 24. Bxa7 {[%emt 0:08:49]} Qg6 {[%emt 0:08:19]} 25. Rxe4 {[%emt 0:01:29]} Bxe4 {[%emt 0:03:36]} 26. Bd4 {[%emt 0:00:02]} f3 {[%emt 0:02:54]} 27. g3 {[%emt 0:09:36]} Bb1 {[%emt 0:05:51]} 28. Qd1 {[%emt 0:02:43]} Be4 {[%emt 0:02:47]} 29. Qd2 {[%emt 0:00:22]} Bb1 {[%emt 0:01:26]} 30. Qd1 {[%emt 0:00:02]} Be4 {[%emt 0:00:09]} 31. Bc3 {[%emt 0:01:55]} f2+ {[%emt 0:01:10]} 32. Kxf2 {[%emt 0:00:03]} Qf5+ {[%emt 0:00:14]} 33. Kg1 {[%emt 0:00:15]} Bd3 {[%emt 0:00:09]} 34. Qd2 {[%emt 0:02:11]} f6 {[%emt 0:08:33]} 35. Rd1 {[%emt 0:08:19]} Bxc4 {[%emt 0:00:52]} 36. b3 {[%emt 0:00:02]} Ba6 {[%emt 0:00:54]} 37. Re1 {[%emt 0:03:35]} Rc8 {[%emt 0:00:53]} 38. Qxh6 {[%emt 0:00:32]} Kf7 {[%emt 0:00:57]} 39. Qe3 {[%emt 0:00:02]} Qxd5 {[%emt 0:01:44]} 40. Qe7+ {[%emt 0:00:31]} Kg6 {[%emt 0:05:50]} 41. Qxf6+ {[%emt 0:30:05]} Kh5 {[%emt 0:30:05]} 42. Qh4+ {[%emt 0:00:19]} 1-0